[Event "*** MasterClass Titled Tuesday Blitz"]
[Site "Chess.com"]
[Date "2017.12.12"]
[Round "10"]
[White "champ1000"]
[Black "bascheyaro"]
[Result "0-1"]
[WhiteElo "2265"]
[BlackElo "2625"]
[TimeControl "180+2"]
[EndTime "15:18:43 PST"]
[Termination "bascheyaro won by checkmate"]

1. e4 {[%clk 0:03:01.9]} 1... e6 {[%clk 0:03:00.3]} 2. d4 {[%clk 0:02:57.1]}
2... d5 {[%clk 0:03:01.4]} 3. Nc3 {[%clk 0:02:58.3]} 3... Bb4 {[%clk 0:03:02.3]}
4. e5 {[%clk 0:02:57.3]} 4... Ne7 {[%clk 0:03:03.6]} 5. a3 {[%clk 0:02:57.4]}
5... Bxc3+ {[%clk 0:03:05.1]} 6. bxc3 {[%clk 0:02:58.3]} 6... b6 {[%clk
0:03:07]} 7. h4 {[%clk 0:02:57.6]} 7... Ba6 {[%clk 0:03:07.4]} 8. Bxa6 {[%clk
0:02:57.5]} 8... Nxa6 {[%clk 0:03:08.3]} 9. Nf3 {[%clk 0:02:56.8]} 9... c5
{[%clk 0:03:08.8]} 10. Be3 {[%clk 0:02:56.6]} 10... Rc8 {[%clk 0:03:09.1]} 11.
O-O {[%clk 0:02:56.4]} 11... O-O {[%clk 0:03:02.5]} 12. Ng5 {[%clk 0:02:47.3]}
12... h6 {[%clk 0:02:57.2]} 13. Nh3 {[%clk 0:02:39.8]} 13... cxd4 {[%clk
0:02:57.6]} 14. cxd4 {[%clk 0:02:39.7]} 14... Nf5 {[%clk 0:02:56.9]} 15. g3
{[%clk 0:02:29.5]} 15... Qc7 {[%clk 0:02:45]} 16. Qe2 {[%clk 0:01:50.6]} 16...
Qc4 {[%clk 0:02:45.5]} 17. Qg4 {[%clk 0:01:52.1]} 17... Qxc2 {[%clk 0:02:40.6]}
18. Nf4 {[%clk 0:01:53.3]} 18... Qe4 {[%clk 0:02:25.4]} 19. Qe2 {[%clk
0:01:14.9]} 19... Nxe3 {[%clk 0:02:20.6]} 20. fxe3 {[%clk 0:01:13.6]} 20... Rc2
{[%clk 0:02:08.4]} 21. Qxa6 {[%clk 0:00:57.3]} 21... Qxe3+ {[%clk 0:02:09.7]}
22. Kh1 {[%clk 0:00:57.7]} 22... Qe4+ {[%clk 0:02:11.1]} 23. Kg1 {[%clk
0:00:58.7]} 23... Qxd4+ {[%clk 0:02:12.5]} 24. Kh1 {[%clk 0:00:59.9]} 24... Qe4+
{[%clk 0:02:13.9]} 25. Kg1 {[%clk 0:01:00.9]} 25... Qe3+ {[%clk 0:02:15.3]} 26.
Kh1 {[%clk 0:01:01.9]} 26... Qxg3 {[%clk 0:02:16.4]} 27. Ne2 {[%clk 0:00:53.9]}
27... Qxh4+ {[%clk 0:02:16.3]} 28. Kg1 {[%clk 0:00:55.2]} 28... f6 {[%clk
0:02:01.3]} 29. Rf2 {[%clk 0:00:41.9]} 29... Rc4 {[%clk 0:01:48.8]} 30. Rg2
{[%clk 0:00:20.1]} 30... fxe5 {[%clk 0:01:41.2]} 31. Qb7 {[%clk 0:00:21]} 31...
Rg4 {[%clk 0:01:42.1]} 32. Rf1 {[%clk 0:00:20.3]} 32... Rxf1+ {[%clk 0:01:42.2]}
33. Kxf1 {[%clk 0:00:21]} 33... Qh1+ {[%clk 0:01:43]} 34. Rg1 {[%clk 0:00:22.3]}
34... Qf3+ {[%clk 0:01:43.5]} 35. Ke1 {[%clk 0:00:24]} 35... Rxg1+ {[%clk
0:01:41.3]} 36. Nxg1 {[%clk 0:00:25.2]} 36... Qc3+ {[%clk 0:01:37.8]} 37. Kf1
{[%clk 0:00:25.6]} 37... e4 {[%clk 0:01:35.3]} 38. Qe7 {[%clk 0:00:20.6]} 38...
Qf6+ {[%clk 0:01:34.4]} 39. Qxf6 {[%clk 0:00:21.9]} 39... gxf6 {[%clk
0:01:36.3]} 40. Nh3 {[%clk 0:00:20.8]} 40... e5 {[%clk 0:01:35.7]} 41. Ke2
{[%clk 0:00:21.5]} 41... f5 {[%clk 0:01:35.6]} 42. Ke3 {[%clk 0:00:21.5]} 42...
Kf7 {[%clk 0:01:36.6]} 43. Nf2 {[%clk 0:00:22.5]} 43... Ke6 {[%clk 0:01:37.3]}
44. a4 {[%clk 0:00:23.8]} 44... d4+ {[%clk 0:01:38.2]} 45. Ke2 {[%clk
0:00:24.8]} 45... Kd5 {[%clk 0:01:39.4]} 46. Nh3 {[%clk 0:00:24.3]} 46... a6
{[%clk 0:01:37.5]} 47. Kd2 {[%clk 0:00:25.1]} 47... b5 {[%clk 0:01:38.6]} 48. a5
{[%clk 0:00:23.7]} 48... b4 {[%clk 0:01:39.4]} 49. Kc2 {[%clk 0:00:24.8]} 49...
f4 {[%clk 0:01:40.4]} 50. Ng1 {[%clk 0:00:25.3]} 50... f3 {[%clk 0:01:41]} 51.
Nh3 {[%clk 0:00:26.3]} 51... e3 {[%clk 0:01:42.1]} 52. Kd3 {[%clk 0:00:25.2]}
52... b3 {[%clk 0:01:42.2]} 53. Ng1 {[%clk 0:00:25.7]} 53... e4# {[%clk
0:01:43.2]} 0-1

[Event "*** MasterClass Titled Tuesday Blitz"]
[Site "Chess.com"]
[Date "2017.12.12"]
[Round "10"]
[White "windking123"]
[Black "Sam_ChessMood"]
[Result "0-1"]
[WhiteElo "2372"]
[BlackElo "2596"]
[TimeControl "180+2"]
[EndTime "15:19:14 PST"]
[Termination "Sam_ChessMood won by resignation"]

1. e4 {[%clk 0:03:01.6]} 1... c6 {[%clk 0:02:59.6]} 2. d4 {[%clk 0:03:02.4]}
2... d5 {[%clk 0:03:00.8]} 3. Nc3 {[%clk 0:03:04]} 3... dxe4 {[%clk 0:03:02.1]}
4. Nxe4 {[%clk 0:03:05.6]} 4... Nf6 {[%clk 0:03:04]} 5. Nxf6+ {[%clk 0:03:07]}
5... exf6 {[%clk 0:03:05.9]} 6. Nf3 {[%clk 0:03:07.5]} 6... Bd6 {[%clk
0:03:03.9]} 7. h3 {[%clk 0:03:08.5]} 7... O-O {[%clk 0:03:04.7]} 8. Be2 {[%clk
0:03:10.2]} 8... Re8 {[%clk 0:03:00.2]} 9. O-O {[%clk 0:03:09.4]} 9... Nd7
{[%clk 0:03:01.2]} 10. Bd3 {[%clk 0:03:04.1]} 10... Nf8 {[%clk 0:03:01.4]} 11.
c3 {[%clk 0:03:04.2]} 11... Ng6 {[%clk 0:03:01.9]} 12. Qc2 {[%clk 0:03:03.1]}
12... Be6 {[%clk 0:03:02.4]} 13. Bd2 {[%clk 0:03:03]} 13... Qd7 {[%clk
0:03:03.4]} 14. h4 {[%clk 0:01:43.4]} 14... Bg4 {[%clk 0:03:00.2]} 15. Bxg6
{[%clk 0:01:44.5]} 15... hxg6 {[%clk 0:02:58.6]} 16. Nh2 {[%clk 0:01:45.4]}
16... Bf5 {[%clk 0:02:51]} 17. Qb3 {[%clk 0:01:45.3]} 17... Qc7 {[%clk
0:02:50.1]} 18. Nf3 {[%clk 0:01:40.4]} 18... Bg4 {[%clk 0:02:51.1]} 19. Rfe1
{[%clk 0:01:40.5]} 19... Bxf3 {[%clk 0:02:44.4]} 20. gxf3 {[%clk 0:01:42.1]}
20... Qd7 {[%clk 0:02:36.2]} 21. Kg2 {[%clk 0:01:37.8]} 21... b5 {[%clk
0:02:28.7]} 22. Qc2 {[%clk 0:01:32.5]} 22... Bc7 {[%clk 0:02:17.5]} 23. Rxe8+
{[%clk 0:01:30.9]} 23... Rxe8 {[%clk 0:02:18.1]} 24. Re1 {[%clk 0:01:27.7]}
24... Rxe1 {[%clk 0:02:18.2]} 25. Bxe1 {[%clk 0:01:29.6]} 25... f5 {[%clk
0:02:15.3]} 26. Qe2 {[%clk 0:01:10.3]} 26... Kf8 {[%clk 0:02:06.8]} 27. Bd2
{[%clk 0:01:09.3]} 27... Qd6 {[%clk 0:02:06.2]} 28. f4 {[%clk 0:00:53.2]} 28...
Qd5+ {[%clk 0:02:00]} 29. Qf3 {[%clk 0:00:54.4]} 29... Qxf3+ {[%clk 0:01:58.7]}
30. Kxf3 {[%clk 0:00:56.3]} 30... Ke7 {[%clk 0:01:56.9]} 31. b3 {[%clk
0:00:57.2]} 31... Ke6 {[%clk 0:01:57.7]} 32. c4 {[%clk 0:00:41.4]} 32... bxc4
{[%clk 0:01:56.1]} 33. bxc4 {[%clk 0:00:43.3]} 33... Bd8 {[%clk 0:01:57.3]} 34.
Kg3 {[%clk 0:00:43.3]} 34... Bf6 {[%clk 0:01:58.2]} 35. Be3 {[%clk 0:00:39.5]}
35... a6 {[%clk 0:01:59]} 36. a4 {[%clk 0:00:34.1]} 36... Kd7 {[%clk 0:01:57.8]}
37. a5 {[%clk 0:00:25.3]} 37... Kd6 {[%clk 0:01:51.7]} 38. f3 {[%clk 0:00:14.8]}
38... c5 {[%clk 0:01:52.2]} 39. dxc5+ {[%clk 0:00:09.2]} 39... Kc6 {[%clk
0:01:53.1]} 40. Kf2 {[%clk 0:00:06.7]} 40... Bc3 {[%clk 0:01:53.8]} 41. Ke2
{[%clk 0:00:06.5]} 41... Bxa5 {[%clk 0:01:54.8]} 42. Bd4 {[%clk 0:00:08.1]}
42... Bd8 {[%clk 0:01:55]} 43. Bxg7 {[%clk 0:00:08.3]} 43... Bxh4 {[%clk
0:01:55.8]} 44. Kd3 {[%clk 0:00:07.8]} 44... Bf2 {[%clk 0:01:56.8]} 45. Kc3
{[%clk 0:00:05.5]} 45... Bxc5 {[%clk 0:01:57.5]} 46. Kb3 {[%clk 0:00:05.3]}
46... Bd6 {[%clk 0:01:58.5]} 47. Bh6 {[%clk 0:00:06.9]} 47... Kc5 {[%clk
0:01:57.6]} 48. Bg5 {[%clk 0:00:07.3]} 48... Kd4 {[%clk 0:01:58.4]} 49. Bh6
{[%clk 0:00:07.3]} 49... a5 {[%clk 0:01:58.7]} 50. Bg5 {[%clk 0:00:07.9]} 50...
a4+ {[%clk 0:01:59.1]} 51. Kxa4 {[%clk 0:00:09.1]} 51... Kxc4 {[%clk 0:02:01]}
52. Ka5 {[%clk 0:00:10.5]} 52... Kd4 {[%clk 0:02:01.7]} 53. Kb6 {[%clk
0:00:11.7]} 53... Ke3 {[%clk 0:02:02.9]} 54. Kc6 {[%clk 0:00:12.1]} 54... Bxf4
{[%clk 0:02:04]} 55. Bh4 {[%clk 0:00:13.2]} 55... Kxf3 {[%clk 0:02:05.1]} 56.
Kd5 {[%clk 0:00:14.9]} 56... g5 {[%clk 0:02:06]} 57. Be1 {[%clk 0:00:16.5]}
57... g4 {[%clk 0:02:07.4]} 58. Bb4 {[%clk 0:00:16.1]} 58... g3 {[%clk 0:02:08]}
0-1

[Event "*** MasterClass Titled Tuesday Blitz"]
[Site "Chess.com"]
[Date "2017.12.12"]
[Round "10"]
[White "FMJoseHerrera"]
[Black "dolynachess"]
[Result "0-1"]
[WhiteElo "2412"]
[BlackElo "2305"]
[TimeControl "180+2"]
[EndTime "15:19:40 PST"]
[Termination "dolynachess won by resignation"]

1. d4 {[%clk 0:02:58.2]} 1... Nf6 {[%clk 0:03:00.3]} 2. Nf3 {[%clk 0:02:57.4]}
2... e6 {[%clk 0:02:58.7]} 3. Nc3 {[%clk 0:02:57.9]} 3... Bb4 {[%clk 0:02:56.8]}
4. Bg5 {[%clk 0:02:57]} 4... b6 {[%clk 0:02:48.7]} 5. e3 {[%clk 0:02:54.5]} 5...
Bb7 {[%clk 0:02:48.4]} 6. Bd3 {[%clk 0:02:55.1]} 6... h6 {[%clk 0:02:49.6]} 7.
Bh4 {[%clk 0:02:54.5]} 7... g5 {[%clk 0:02:49.9]} 8. Bg3 {[%clk 0:02:53.6]} 8...
Ne4 {[%clk 0:02:46.7]} 9. O-O {[%clk 0:02:45.1]} 9... Bxc3 {[%clk 0:02:25.4]}
10. bxc3 {[%clk 0:02:47]} 10... Nxc3 {[%clk 0:02:26.5]} 11. Qe1 {[%clk
0:02:41.1]} 11... Ne4 {[%clk 0:02:27.4]} 12. Ne5 {[%clk 0:02:40.7]} 12... d6
{[%clk 0:02:07.7]} 13. Nc4 {[%clk 0:02:15.7]} 13... Nd7 {[%clk 0:01:52.4]} 14.
a4 {[%clk 0:01:40.8]} 14... a5 {[%clk 0:01:50.7]} 15. Rb1 {[%clk 0:01:26.1]}
15... Qe7 {[%clk 0:01:48]} 16. Nd2 {[%clk 0:01:15.6]} 16... Nc3 {[%clk 0:01:11]}
17. Rb3 {[%clk 0:01:08.8]} 17... Nd5 {[%clk 0:01:02.8]} 18. c4 {[%clk
0:00:55.5]} 18... Nb4 {[%clk 0:01:02.2]} 19. Bb1 {[%clk 0:00:57.1]} 19... h5
{[%clk 0:00:56.7]} 20. f3 {[%clk 0:00:50.1]} 20... f5 {[%clk 0:00:52.2]} 21. h4
{[%clk 0:00:49.7]} 21... g4 {[%clk 0:00:47.4]} 22. e4 {[%clk 0:00:47.1]} 22...
gxf3 {[%clk 0:00:39.5]} 23. Nxf3 {[%clk 0:00:41.1]} 23... fxe4 {[%clk
0:00:29.2]} 24. Ng5 {[%clk 0:00:25.6]} 24... Nf6 {[%clk 0:00:16.2]} 25. Nxe4
{[%clk 0:00:18.6]} 25... Nxe4 {[%clk 0:00:16.6]} 26. Bxe4 {[%clk 0:00:20.5]}
26... O-O-O {[%clk 0:00:16.5]} 27. Bxb7+ {[%clk 0:00:19.8]} 27... Kxb7 {[%clk
0:00:17.7]} 28. Qe4+ {[%clk 0:00:21.7]} 28... d5 {[%clk 0:00:17.2]} 29. cxd5
{[%clk 0:00:23.6]} 29... Rxd5 {[%clk 0:00:17.7]} 30. Rbf3 {[%clk 0:00:24.2]}
30... Rh7 {[%clk 0:00:16.2]} 31. Rf8 {[%clk 0:00:23.7]} 31... Qd7 {[%clk
0:00:16.7]} 32. Rg8 {[%clk 0:00:16.5]} 32... Nc6 {[%clk 0:00:17.4]} 33. Rff8
{[%clk 0:00:18.1]} 33... Rf7 {[%clk 0:00:17.2]} 34. Ra8 {[%clk 0:00:17.4]} 34...
Rg7 {[%clk 0:00:17.4]} 35. Rxg7 {[%clk 0:00:14.5]} 35... Qxg7 {[%clk 0:00:18.3]}
36. Qxe6 {[%clk 0:00:12.9]} 36... Qxd4+ {[%clk 0:00:13.7]} 37. Bf2 {[%clk
0:00:13.4]} 37... Qd1+ {[%clk 0:00:12.7]} 38. Kh2 {[%clk 0:00:14.1]} 38... Kxa8
{[%clk 0:00:13.5]} 39. Qxc6+ {[%clk 0:00:15.7]} 39... Kb8 {[%clk 0:00:14.8]} 40.
Qe8+ {[%clk 0:00:17.2]} 40... Kb7 {[%clk 0:00:15.6]} 41. Qe4 {[%clk 0:00:18.2]}
41... Qd3 {[%clk 0:00:16.3]} 42. Qg6 {[%clk 0:00:17.7]} 42... Qxg6 {[%clk
0:00:16.6]} 0-1

[Event "*** MasterClass Titled Tuesday Blitz"]
[Site "Chess.com"]
[Date "2017.12.12"]
[Round "10"]
[White "Winehouse83"]
[Black "SharkAnto55"]
[Result "1/2-1/2"]
[WhiteElo "2417"]
[BlackElo "2374"]
[TimeControl "180+2"]
[EndTime "15:19:51 PST"]
[Termination "Game drawn by agreement"]

1. d4 {[%clk 0:03:01.9]} 1... d5 {[%clk 0:03:00.1]} 2. Bf4 {[%clk 0:03:02.7]}
2... Nf6 {[%clk 0:02:59.9]} 3. e3 {[%clk 0:03:04.2]} 3... e6 {[%clk 0:03:00.8]}
4. Bd3 {[%clk 0:03:04.9]} 4... Bd6 {[%clk 0:03:01.3]} 5. Bg3 {[%clk 0:03:01.5]}
5... c5 {[%clk 0:03:02.2]} 6. c3 {[%clk 0:03:02.3]} 6... Nc6 {[%clk 0:03:03.4]}
7. Nf3 {[%clk 0:02:57.6]} 7... O-O {[%clk 0:03:04.7]} 8. O-O {[%clk 0:02:56.2]}
8... b6 {[%clk 0:03:05.4]} 9. Ne5 {[%clk 0:02:56.2]} 9... Bb7 {[%clk 0:03:00.6]}
10. Nd2 {[%clk 0:02:54.6]} 10... Ne7 {[%clk 0:02:57.2]} 11. a4 {[%clk
0:02:46.6]} 11... a6 {[%clk 0:02:48.3]} 12. Qb1 {[%clk 0:02:31.3]} 12... Ng6
{[%clk 0:02:20.8]} 13. b4 {[%clk 0:02:29.1]} 13... c4 {[%clk 0:01:47.6]} 14. Be2
{[%clk 0:02:12.7]} 14... Qc7 {[%clk 0:01:25.2]} 15. Nxg6 {[%clk 0:01:47.9]}
15... hxg6 {[%clk 0:01:23.7]} 16. Bxd6 {[%clk 0:01:45.1]} 16... Qxd6 {[%clk
0:01:25.6]} 17. f4 {[%clk 0:01:46.7]} 17... b5 {[%clk 0:01:21.7]} 18. axb5
{[%clk 0:01:44.9]} 18... axb5 {[%clk 0:01:20.3]} 19. Qb2 {[%clk 0:01:44.5]}
19... Rxa1 {[%clk 0:01:10.1]} 20. Rxa1 {[%clk 0:01:44.9]} 20... Re8 {[%clk
0:01:12]} 21. Ra5 {[%clk 0:01:40.7]} 21... Qb6 {[%clk 0:01:12.2]} 22. h3 {[%clk
0:01:28.6]} 22... Ra8 {[%clk 0:01:12]} 23. Rxa8+ {[%clk 0:01:28.5]} 23... Bxa8
{[%clk 0:01:12.8]} 24. Qa3 {[%clk 0:01:30.1]} 24... Bb7 {[%clk 0:01:13.6]} 25.
Bf3 {[%clk 0:01:29.8]} 25... Qa6 {[%clk 0:01:10.7]} 26. Nb1 {[%clk 0:01:24.6]}
26... Nd7 {[%clk 0:01:08.1]} 27. g4 {[%clk 0:01:16]} 27... f5 {[%clk 0:01:08.5]}
28. g5 {[%clk 0:01:12.9]} 28... Nb6 {[%clk 0:01:08.4]} 29. Bd1 {[%clk
0:01:05.1]} 29... Kf7 {[%clk 0:01:07.3]} 30. Kf2 {[%clk 0:00:46.4]} 30... Qxa3
{[%clk 0:01:02.9]} 31. Nxa3 {[%clk 0:00:48.3]} 31... Bc6 {[%clk 0:01:04.8]} 32.
h4 {[%clk 0:00:46.6]} 32... Nc8 {[%clk 0:01:04.5]} 33. h5 {[%clk 0:00:43.6]}
33... gxh5 {[%clk 0:01:06.4]} 34. Bxh5+ {[%clk 0:00:44]} 34... g6 {[%clk
0:01:08]} 35. Bf3 {[%clk 0:00:45]} 35... Nd6 {[%clk 0:01:09.4]} 36. Nb1 {[%clk
0:00:39.8]} 36... Nc8 {[%clk 0:01:08.6]} 37. Nd2 {[%clk 0:00:38.5]} 37... Nb6
{[%clk 0:01:08.9]} 38. Bd1 {[%clk 0:00:39.5]} 38... Nd7 {[%clk 0:01:05]} 39. Nf3
{[%clk 0:00:39.6]} 39... Bb7 {[%clk 0:01:05.7]} 40. Ke1 {[%clk 0:00:36.9]} 40...
Bc6 {[%clk 0:01:06]} 41. Kd2 {[%clk 0:00:38]} 41... Ke7 {[%clk 0:01:06.7]} 42.
Kc1 {[%clk 0:00:39.9]} 42... Kf7 {[%clk 0:01:05.1]} 43. Kb2 {[%clk 0:00:41.1]}
43... Ke7 {[%clk 0:01:05.4]} 44. Nh4 {[%clk 0:00:42.1]} 44... Kf7 {[%clk
0:01:06.3]} 45. Ng2 {[%clk 0:00:42.4]} 45... Nb6 {[%clk 0:01:05.8]} 46. Ne1
{[%clk 0:00:42.8]} 46... Nd7 {[%clk 0:01:06.2]} 47. Be2 {[%clk 0:00:44.1]} 47...
Nb6 {[%clk 0:01:06.8]} 48. Bd1 {[%clk 0:00:44]} 48... Nd7 {[%clk 0:01:07.4]} 49.
Nc2 {[%clk 0:00:43.8]} 49... Nb6 {[%clk 0:01:07]} 50. Na3 {[%clk 0:00:44.8]}
50... Nd7 {[%clk 0:01:07.9]} 51. Kc1 {[%clk 0:00:42.7]} 51... Nb6 {[%clk
0:01:08.4]} 52. Kd2 {[%clk 0:00:43.5]} 52... Nd7 {[%clk 0:01:09.3]} 53. Ke1
{[%clk 0:00:44.3]} 53... Nb6 {[%clk 0:01:10.1]} 54. Kf2 {[%clk 0:00:44.4]} 54...
Nc8 {[%clk 0:01:08.4]} 55. Kg3 {[%clk 0:00:45.6]} 55... Nd6 {[%clk 0:01:08.9]}
56. Bf3 {[%clk 0:00:46.9]} 56... Nc8 {[%clk 0:01:07.8]} 57. Kh4 {[%clk
0:00:48.2]} 57... Nd6 {[%clk 0:01:08.3]} 58. Nb1 {[%clk 0:00:46.5]} 58... Nc8
{[%clk 0:01:08.8]} 59. Nd2 {[%clk 0:00:46.9]} 59... Nb6 {[%clk 0:01:09.8]} 60.
Bd1 {[%clk 0:00:48.1]} 60... Nd7 {[%clk 0:01:10.5]} 61. Nb1 {[%clk 0:00:46.6]}
61... Nb6 {[%clk 0:01:10.5]} 1/2-1/2

[Event "*** MasterClass Titled Tuesday Blitz"]
[Site "Chess.com"]
[Date "2017.12.12"]
[Round "10"]
[White "marreta84"]
[Black "TST2014"]
[Result "1-0"]
[WhiteElo "2336"]
[BlackElo "2257"]
[TimeControl "180+2"]
[EndTime "15:19:59 PST"]
[Termination "marreta84 won on time"]

1. d4 {[%clk 0:03:01.9]} 1... Nf6 {[%clk 0:02:59.3]} 2. Nf3 {[%clk 0:03:02.2]}
2... g6 {[%clk 0:02:59.9]} 3. Bf4 {[%clk 0:03:01.9]} 3... Bg7 {[%clk 0:03:00.3]}
4. Nc3 {[%clk 0:03:01.6]} 4... O-O {[%clk 0:03:01.6]} 5. Qd2 {[%clk 0:03:02.7]}
5... d6 {[%clk 0:02:57.3]} 6. Bh6 {[%clk 0:03:02.5]} 6... Nc6 {[%clk 0:02:52]}
7. Bxg7 {[%clk 0:03:02.2]} 7... Kxg7 {[%clk 0:02:52.4]} 8. e4 {[%clk 0:03:00.9]}
8... d5 {[%clk 0:02:49.6]} 9. exd5 {[%clk 0:02:59]} 9... Nxd5 {[%clk 0:02:48.8]}
10. h3 {[%clk 0:02:58.5]} 10... Bf5 {[%clk 0:02:45.2]} 11. Bc4 {[%clk
0:02:57.4]} 11... Ncb4 {[%clk 0:02:43.1]} 12. Bb3 {[%clk 0:02:57.1]} 12... c6
{[%clk 0:02:39.2]} 13. a3 {[%clk 0:02:56.8]} 13... Nxc3 {[%clk 0:02:37.7]} 14.
Qxc3 {[%clk 0:02:50.9]} 14... Nd5 {[%clk 0:02:35.4]} 15. Qd2 {[%clk 0:02:52.3]}
15... Qd6 {[%clk 0:02:31.6]} 16. O-O {[%clk 0:02:36.9]} 16... Rad8 {[%clk
0:02:23.3]} 17. Rfe1 {[%clk 0:02:34.4]} 17... Nf4 {[%clk 0:02:13.8]} 18. Re5
{[%clk 0:02:11.9]} 18... Ne6 {[%clk 0:01:54.9]} 19. Rd1 {[%clk 0:01:47.3]} 19...
c5 {[%clk 0:01:29]} 20. dxc5 {[%clk 0:01:35]} 20... Nxc5 {[%clk 0:01:16.3]} 21.
Rd5 {[%clk 0:01:21.1]} 21... Nxb3 {[%clk 0:01:01.6]} 22. Qc3+ {[%clk 0:01:14.5]}
22... Qf6 {[%clk 0:00:57.9]} 23. Qxf6+ {[%clk 0:01:06.7]} 23... Kxf6 {[%clk
0:00:58.9]} 24. Rxd8 {[%clk 0:01:06.7]} 24... Rxd8 {[%clk 0:01:00.4]} 25. Rxd8
{[%clk 0:01:07.4]} 25... Bxc2 {[%clk 0:01:01.9]} 26. Rd7 {[%clk 0:01:04.9]}
26... Be4 {[%clk 0:01:00.2]} 27. Nd2 {[%clk 0:00:54.1]} 27... Bc6 {[%clk
0:00:55.6]} 28. Rd3 {[%clk 0:00:55.4]} 28... Nc5 {[%clk 0:00:55.4]} 29. Rc3
{[%clk 0:00:55.1]} 29... Na4 {[%clk 0:00:51.8]} 30. Rc2 {[%clk 0:00:56.5]} 30...
e5 {[%clk 0:00:49.1]} 31. b4 {[%clk 0:00:56.2]} 31... a6 {[%clk 0:00:48.1]} 32.
Nc4 {[%clk 0:00:54.8]} 32... Ke6 {[%clk 0:00:47.6]} 33. Na5 {[%clk 0:00:51.7]}
33... Bd5 {[%clk 0:00:46]} 34. Rc7 {[%clk 0:00:52.4]} 34... b6 {[%clk 0:00:45]}
35. Nc4 {[%clk 0:00:50.7]} 35... h5 {[%clk 0:00:38.1]} 36. Ne3 {[%clk
0:00:51.2]} 36... f5 {[%clk 0:00:34.1]} 37. Nxd5 {[%clk 0:00:48.9]} 37... Kxd5
{[%clk 0:00:34.8]} 38. Rg7 {[%clk 0:00:50]} 38... Kc4 {[%clk 0:00:32.9]} 39.
Rxg6 {[%clk 0:00:50.9]} 39... Kb3 {[%clk 0:00:34.1]} 40. Rg5 {[%clk 0:00:51.8]}
40... Kxa3 {[%clk 0:00:31.1]} 41. Rxh5 {[%clk 0:00:52.4]} 41... Kxb4 {[%clk
0:00:32.3]} 42. Rxf5 {[%clk 0:00:52.9]} 42... Nc5 {[%clk 0:00:32.8]} 43. h4
{[%clk 0:00:53.8]} 43... a5 {[%clk 0:00:34.1]} 44. h5 {[%clk 0:00:54.5]} 44...
Nb3 {[%clk 0:00:21]} 45. h6 {[%clk 0:00:50.8]} 45... Nd4 {[%clk 0:00:22.4]} 46.
Rxe5 {[%clk 0:00:49.2]} 46... a4 {[%clk 0:00:21.2]} 47. h7 {[%clk 0:00:48.8]}
47... a3 {[%clk 0:00:22.5]} 48. h8=Q {[%clk 0:00:39.9]} 48... a2 {[%clk
0:00:20.2]} 49. Re1 {[%clk 0:00:39.4]} 49... Nc2 {[%clk 0:00:18.6]} 50. Qb2+
{[%clk 0:00:38.1]} 1-0

[Event "*** MasterClass Titled Tuesday Blitz"]
[Site "Chess.com"]
[Date "2017.12.12"]
[Round "10"]
[White "MartinZumsande"]
[Black "marianokar"]
[Result "1-0"]
[WhiteElo "2470"]
[BlackElo "2312"]
[TimeControl "180+2"]
[EndTime "15:20:22 PST"]
[Termination "MartinZumsande won by resignation"]

1. e4 {[%clk 0:03:01.9]} 1... c5 {[%clk 0:03:00.4]} 2. Nf3 {[%clk 0:03:02.2]}
2... e6 {[%clk 0:03:00.8]} 3. c3 {[%clk 0:03:00]} 3... Nf6 {[%clk 0:03:00.7]} 4.
e5 {[%clk 0:03:00.5]} 4... Nd5 {[%clk 0:03:02.3]} 5. d4 {[%clk 0:02:59.7]} 5...
cxd4 {[%clk 0:03:03.7]} 6. cxd4 {[%clk 0:03:01.3]} 6... b6 {[%clk 0:03:05.2]} 7.
Nc3 {[%clk 0:03:00.9]} 7... Nxc3 {[%clk 0:03:03]} 8. bxc3 {[%clk 0:03:02.8]}
8... Qc7 {[%clk 0:03:04.7]} 9. Bd2 {[%clk 0:03:03.9]} 9... d6 {[%clk 0:03:04.6]}
10. Bd3 {[%clk 0:03:03.5]} 10... Bb7 {[%clk 0:03:04.8]} 11. O-O {[%clk
0:03:03.7]} 11... Nd7 {[%clk 0:03:05.4]} 12. Ng5 {[%clk 0:03:04.9]} 12... dxe5
{[%clk 0:03:05.5]} 13. Qh5 {[%clk 0:03:06.2]} 13... g6 {[%clk 0:03:00.4]} 14.
Qh3 {[%clk 0:03:07.3]} 14... Be7 {[%clk 0:02:48]} 15. Rae1 {[%clk 0:03:07]}
15... h6 {[%clk 0:02:11.5]} 16. f4 {[%clk 0:02:41.7]} 16... Bxg5 {[%clk
0:01:38.4]} 17. fxg5 {[%clk 0:02:40.8]} 17... O-O-O {[%clk 0:01:40.3]} 18. Rxf7
{[%clk 0:02:25.3]} 18... hxg5 {[%clk 0:01:36.9]} 19. Qg3 {[%clk 0:02:23.4]}
19... exd4 {[%clk 0:01:34.1]} 20. Qxc7+ {[%clk 0:02:22.5]} 20... Kxc7 {[%clk
0:01:34.8]} 21. cxd4 {[%clk 0:02:21.1]} 21... Bd5 {[%clk 0:01:31.9]} 22. Bxg5
{[%clk 0:02:13.6]} 22... Kb8 {[%clk 0:00:53]} 23. Bxd8 {[%clk 0:02:10.2]} 23...
Rxd8 {[%clk 0:00:54.9]} 24. a3 {[%clk 0:01:58.6]} 24... g5 {[%clk 0:00:54.2]}
25. Rg7 {[%clk 0:01:57.4]} 25... Kc7 {[%clk 0:00:51.5]} 26. Rxg5 {[%clk
0:01:56.4]} 26... Kd6 {[%clk 0:00:53.4]} 27. h4 {[%clk 0:01:56.6]} 27... Rc8
{[%clk 0:00:49.3]} 28. Bb5 {[%clk 0:01:35.7]} 28... Nf6 {[%clk 0:00:48.3]} 29.
Rg7 {[%clk 0:01:29.7]} 29... a6 {[%clk 0:00:27.5]} 30. Rf1 {[%clk 0:01:18.4]}
30... Ra8 {[%clk 0:00:29.3]} 31. Rxf6 {[%clk 0:01:08.7]} 31... axb5 {[%clk
0:00:30.5]} 32. h5 {[%clk 0:01:07.9]} 32... Rxa3 {[%clk 0:00:27.6]} 33. h6
{[%clk 0:01:09]} 33... Be4 {[%clk 0:00:25.2]} 34. h7 {[%clk 0:00:55.8]} 34...
Ra8 {[%clk 0:00:25.4]} 35. Rf4 {[%clk 0:00:43.5]} 35... Bd3 {[%clk 0:00:21.7]}
36. Rf3 {[%clk 0:00:38.3]} 36... Bc2 {[%clk 0:00:17.5]} 37. Rc3 {[%clk
0:00:30.6]} 37... Be4 {[%clk 0:00:16.7]} 38. Rb3 {[%clk 0:00:28.7]} 38... Rh8
{[%clk 0:00:16]} 39. Rxb5 {[%clk 0:00:29.4]} 39... Rxh7 {[%clk 0:00:15.3]} 40.
Rxh7 {[%clk 0:00:30.6]} 40... Bxh7 {[%clk 0:00:15.7]} 41. Rxb6+ {[%clk
0:00:31.1]} 41... Kd5 {[%clk 0:00:17.6]} 42. Rb4 {[%clk 0:00:32.2]} 42... Bd3
{[%clk 0:00:16.8]} 43. Kf2 {[%clk 0:00:32.1]} 43... Bc4 {[%clk 0:00:18.7]} 44.
Ke3 {[%clk 0:00:33.4]} 44... Ba2 {[%clk 0:00:19.4]} 45. Rb5+ {[%clk 0:00:32.8]}
45... Kd6 {[%clk 0:00:18.4]} 46. Kf4 {[%clk 0:00:33.2]} 46... Bc4 {[%clk
0:00:17.8]} 47. Rc5 {[%clk 0:00:33.3]} 47... Bd3 {[%clk 0:00:18.5]} 48. g4
{[%clk 0:00:32.3]} 48... Bb1 {[%clk 0:00:18.2]} 49. Ra5 {[%clk 0:00:30.1]} 49...
Bc2 {[%clk 0:00:18.4]} 50. Kg5 {[%clk 0:00:27.5]} 50... Ke7 {[%clk 0:00:18.2]}
51. Kh6 {[%clk 0:00:27]} 51... Kf6 {[%clk 0:00:17.7]} 52. g5+ {[%clk 0:00:27.9]}
52... Kf7 {[%clk 0:00:17.8]} 53. Ra7+ {[%clk 0:00:28.4]} 53... Kf8 {[%clk
0:00:19]} 54. g6 {[%clk 0:00:29.2]} 54... Bf5 {[%clk 0:00:19.4]} 55. g7+ {[%clk
0:00:29.7]} 1-0